Cogmind - Beta 9.6 @@@ ROGUE MODE // 2020.06.10 @ 00:25:54 Player: Vectis Result: Destroyed by S-27 Virus with Autogun Performance ------------- Evolutions (4) 2000 Regions Visited (11) 2200 Robots Destroyed (123) 615 Value Destroyed (4588) 4588 Prototype IDs (27) 540 Alien Tech Used (0) 0 Bonus (3344) 3344 TOTAL SCORE: 13287 Bonus ------- High Alert Combat Kills 379 Follower Combat Kills 1408 Entered Garrisons 400 Used RIF Installer 1000 Aligned with FarCom 300 Friendly Fire -143 Cogmind --------- Core Integrity 0/850 Matter 245/300 Energy 100/100 System Corruption 3% Temperature Cool (0) Movement Core (100) Ox1 Location -6/Factory Parts ------- > --- POWER (1) -------- (None) > --- PROPULSION (3) --- Improved VTOL Module > --- UTILITY (9) ------ Melee Analysis Suite Hacking Suite Hacking Suite System Shield Relay Coupler [NC] (8) Relay Coupler [Duelist] (24) System Backup Module > --- WEAPON (2) ------- Axe > --- INVENTORY (4) ---- Light Fission Core Advanced ECM Suite Relay Coupler [Hunter] (17) Peak State ------------ > --- POWER ------------ Nuclear Core > --- PROPULSION ------- Light Treads Armored Treads Medium Treads > --- UTILITY ---------- Coolant Injector Large Storage Unit High-capacity Storage Unit Humpback > --- WEAPON ----------- Firepult > --- INVENTORY -------- Deuterium Engine Light Nuclear Core Improved Flight Unit Improved Flight Unit Improved Flight Unit Improved VTOL Module Medium Storage Unit Hacking Suite Hacking Suite Hacking Suite System Shield System Shield Relay Coupler [NC] Relay Coupler [NC] Relay Coupler [NC] Relay Coupler [NC] Relay Coupler [NC] Relay Coupler [NC] Relay Coupler [NC] Relay Coupler [NC] Relay Coupler [NC] Relay Coupler [Grunt] Relay Coupler [Grunt] Relay Coupler [Grunt] Relay Coupler [Duelist] Relay Coupler [Sentry] Relay Coupler [Sentry] Relay Coupler [Demolisher] Relay Coupler [Hunter] Relay Coupler [Hunter] Relay Coupler [Behemoth] EM Pulse Cannon Advanced Assault Cannon Precision Rocket Launcher Improved Datajack Plasma Cutter [Rating: 49] Favorites ----------- Power Deuterium Engine Engine Deuterium Engine Power Core Light Nuclear Core Propulsion Improved Treads Treads Improved Treads Flight Unit Improved Flight Unit Utility Hacking Suite Device Improved Heat Sink Storage Humpback Processor Melee Analysis Suite Hackware Hacking Suite Protection Improved Light Armor Plating Weapon Plasma Cannon Energy Gun Backup Laser III Energy Cannon Plasma Cannon Ballistic Gun Light Assault Rifle Ballistic Cannon Advanced Assault Cannon Launcher Precision Rocket Launcher Special Weapon Enhanced Flamer Slashing Weapon Axe Special Melee Weapon Improved Datajack Build | -11 -10 -10 -10 -9 -8 -8 -8 -8 -6 -6 -6 ------- Run | Scr Mat Min Exi Min Mat Sto Gar Rec Fac Gar Fac Slots Evolved 8 | . . . . . 4 . . . 4 . . Power . | . . . . . . . . . . . . Propulsion 1 | . . . . . 1 . . . . . . Utility 7 | . . . . . 3 . . . 4 . . Weapon . | . . . . . . . . . . . . Parts Attached 151 | 7 3 8 3 4 40 20 11 3 45 . 7 Power 11 | 1 . 3 . . 2 1 . . 3 . 1 Engine 7 | 1 . 3 . . 2 . . . 1 . . Core 4 | . . . . . . 1 . . 2 . 1 Reactor . | . . . . . . . . . . . . Propulsion 24 | 2 . 2 . . 7 4 4 . 4 . 1 Treads 19 | 2 . 2 . . 6 4 4 . 1 . . Leg . | . . . . . . . . . . . . Wheel . | . . . . . . . . . . . . Hover . | . . . . . . . . . . . . Flight 5 | . . . . . 1 . . . 3 . 1 Utility 45 | 2 2 . 3 . 10 3 1 1 19 . 4 Device 10 | . . . . . 3 1 1 . 4 . 1 Storage 15 | 2 2 . 3 . 5 2 . . 1 . . Processor 1 | . . . . . . . . . . . 1 Hackware 17 | . . . . . . . . 1 14 . 2 Protection 2 | . . . . . 2 . . . . . . Artifact . | . . . . . . . . . . . . Weapon 71 | 2 1 3 . 4 21 12 6 2 19 . 1 Energy Gun 5 | . . 1 . . 4 . . . . . . Energy Cannon 11 | . 1 . . . 2 5 2 1 . . . Ballistic Gun 11 | 2 . 1 . . 8 . . . . . . Ballistic Cannon 9 | . . . . . 2 3 2 1 1 . . Launcher 11 | . . . . 2 4 1 2 . 2 . . Special Weapon 15 | . . 1 . 2 1 3 . . 8 . . Impact Weapon . | . . . . . . . . . . . . Slashing Weapon 8 | . . . . . . . . . 7 . 1 Piercing Weapon . | . . . . . . . . . . . . Special Melee Weapon 1 | . . . . . . . . . 1 . . Unidentified Prototypes 3 | . . . . . 2 1 . . . . . Parts Lost 33 | . . 7 . . 1 6 . . 13 6 . Power 5 | . . 2 . . . . . . 3 . . Propulsion 6 | . . 2 . . . 1 . . . 3 . Utility 11 | . . . . . . 2 . . 6 3 . Weapon 11 | . . 3 . . 1 3 . . 4 . . Highest Loss Streak 6 | . . 3 . . 1 2 . . 3 6 . Average Slot Usage (%) 85 | . 100 97 89 85 79 82 89 88 88 39 42 Engine 6 | . 14 12 14 14 9 8 . . 2 . . Core 2 | . . . . . . . 9 9 3 . . Treads 18 | . 28 27 28 28 26 26 27 27 1 . . Flight 5 | . . . . . . . . . 18 8 3 Device 3 | . . . . . 4 8 8 2 1 . 2 Storage 15 | . 28 28 18 14 17 20 27 27 6 3 . Hackware 13 | . . . . . . . . 6 42 28 27 Protection 1 | . . . . . 3 . . . . . . Energy Gun 2 | . . 4 . . 3 . . . 3 . . Energy Cannon 4 | . 8 1 . . 8 11 4 9 . . . Ballistic Gun 4 | . 19 18 14 14 4 . . . . . . Ballistic Cannon 1 | . . . . . . 4 13 7 . . . Special Weapon 2 | . . 3 14 13 . 2 . . 1 . . Naked Turns . | . . . . . . . . . . . . Heaviest Build 215 | 15 25 25 88 90 215 184 158 158 148 8 4 Greatest Support 76 | 40 40 46 46 46 69 71 76 68 68 18 3 Greatest Overweight (x) 4 | . . 1 1 1 3 2 2 2 4 . 1 Average Overweight (x) . | . . . . 1 1 1 1 2 . . . Largest Inventory Capacity 52 | 8 12 12 24 24 52 44 38 38 38 8 4 Average Capacity 25 | 5 9 12 20 24 42 42 38 38 9 6 4 Most Carried 44 | 4 10 11 20 21 44 44 38 38 37 8 4 Average Carried 23 | 2 8 8 14 20 38 40 37 36 9 6 3 Final Capacity 44 | 8 12 12 24 24 44 38 38 38 8 4 4 Final Carried 44 | 4 9 7 20 21 44 38 36 37 8 4 3 Class Distribution -------------------- 47% | Hauler-Mutant 17% | Commander-Sprinter 13% | Mutant 9% | Bothacker-Mutant 6% | Wizard-Sprinter 3% | Hacker-Sprinter Dominant Class ---------------- Mutant | -10/Materials Mutant | -10/Mines Hauler-Mutant | -10/Exiles Hauler-Mutant | -9/Mines Hauler-Mutant | -8/Materials Hauler-Mutant | -8/Storage Bothacker-Mutant | -8/Garrison Bothacker-Mutant | -8/Recycling Commander-Sprinter | -6/Factory Hacker-Sprinter | -6/Garrison Hacker-Mutant | -6/Factory Resources | -11 -10 -10 -10 -9 -8 -8 -8 -8 -6 -6 -6 ----------- Run | Scr Mat Min Exi Min Mat Sto Gar Rec Fac Gar Fac Matter Collected 2943 | 271 80 127 . 95 911 270 458 46 655 . 30 Remotely . | . . . . . . . . . . . . Salvage Created 3770 | 68 235 317 . 51 1482 667 401 62 457 . 30 Parts 236 | 2 17 17 . 7 86 39 30 9 25 . 4 Haulers Intercepted 3 | . 2 . . . 1 . . . . . . Recyclers Shooed 3 | . . . . . 2 1 . . . . . Parts Field Recycled . | . . . . . . . . . . . . Retrieved Matter . | . . . . . . . . . . . . Parts Self-Destructed . | . . . . . . . . . . . . Prevented . | . . . . . . . . . . . . Kills | -11 -10 -10 -10 -9 -8 -8 -8 -8 -6 -6 -6 ------- Run | Scr Mat Min Exi Min Mat Sto Gar Rec Fac Gar Fac Combat Hostiles Destroyed 104 | . 3 12 . 6 33 15 19 6 10 . . Melee 1 | . . . . . . . . . 1 . . Guns 28 | . 2 7 . 1 17 . . . 1 . . Cannons 56 | . 1 5 . . 10 14 17 6 3 . . AOE 17 | . . . . 5 5 . 2 . 5 . . Classes Destroyed 18 | 1 4 2 . . 3 2 3 1 2 . . Worker 2 | . . . . . 1 . . . 1 . . Builder 1 | . . . . . . . . . 1 . . Hauler 3 | . 2 . . . 1 . . . . . . Recycler 3 | 1 . . . . 2 . . . . . . Operator 5 | . 1 . . . 2 1 . . . . 1 Drone 6 | . . . . . . . . 6 . . . Watcher 5 | . 1 . . . 3 1 . . . . . Swarmer 32 | . . 5 . 4 12 3 8 . . . . Saboteur 1 | . . . . . . . . . 1 . . Grunt 37 | . 3 5 . 2 11 6 6 . 4 . . Brawler 2 | . . . . . . . 1 . 1 . . Duelist 1 | . . . . . 1 . . . . . . Protector 1 | . . . . . . . 1 . . . . Sentry 15 | . . . . . 9 4 2 . . . . Demolisher 1 | . . . . . . . 1 . . . . Hunter 2 | . . . . . . 1 . . 1 . . Programmer 4 | . . . . . . 1 . . 3 . . Assembled 2 | . . 2 . . . . . . . . . Best Kill Streak 5 | 1 2 3 . 4 5 3 5 2 3 . . Combat Bots Only 5 | . 2 3 . 4 5 3 5 2 3 . . Max Kills in Single Turn 3 | 1 1 1 . 2 3 2 2 1 2 . 1 Gunslinging . | . . . . . . . . . . . . Exploded 2 | . . . . 2 2 . 2 . 2 . . Melee 1 | . . . . . . . . . 1 . . Uniques/NPCs Destroyed . | . . . . . . . . . . . . Combat | -11 -10 -10 -10 -9 -8 -8 -8 -8 -6 -6 -6 -------- Run | Scr Mat Min Exi Min Mat Sto Gar Rec Fac Gar Fac Damage Taken 5662 | . 224 668 . 87 1262 930 466 . 1449 403 173 Core 1110 | . 28 54 . 24 69 49 34 . 417 292 143 Absorbed by Shields . | . . . . . . . . . . . . Core Remaining (%) 76 | 100 . . . 57 . . . 72 . . . Volleys Fired 398 | 5 28 41 . 5 140 49 54 21 55 . . Largest 2 | 2 2 2 . 2 2 2 2 1 2 . . Hottest 160 | 40 80 100 . 53 160 160 128 63 111 . . Shots Fired 677 | 10 56 82 . 9 258 90 82 21 69 . . Gun 306 | 10 41 62 . 4 170 . . . 19 . . Cannon 299 | . 15 17 . . 58 84 78 21 26 . . Launcher 20 | . . . . 5 7 . 4 . 4 . . Special 52 | . . 3 . . 23 6 . . 20 . . Kinetic 308 | 10 41 53 . 4 116 15 53 1 15 . . Thermal 303 | . 15 29 . . 135 75 25 . 24 . . Explosive 20 | . . . . 5 7 . 4 . 4 . . Electromagnetic 31 | . . . . . . . . 20 11 . . Robot Hit Streak 35 | 9 13 8 . 3 22 35 9 3 11 . . Robot Miss Streak 5 | 1 3 2 . 2 5 2 2 3 2 . . Penetration Max . | . . . . . . . . . . . . Secondary Targets 1 | . . . . . 1 . . . . . . Max Gunslinging Chain 1 | . . . . . 1 . . . . . . Shots Hit Robots 448 | 9 36 55 . 3 167 64 34 10 67 . 3 Core Hits 204 | 2 12 22 . 7 75 25 29 6 25 . 1 Critical Hits 4 | . 1 . . . 1 . 2 . . . . Critical Kills 3 | . 1 . . . 1 . 1 . . . . Critical Parts Destroyed 1 | . . . . . . . 1 . . . . Melee Attacks 66 | . . . . . . . . . 55 . 11 Impact . | . . . . . . . . . . . . Slashing 54 | . . . . . . . . . 43 . 11 Piercing . | . . . . . . . . . . . . Sneak Attacks 11 | . . . . . . . . . 10 . 1 Combat Hostiles 1 | . . . . . . . . . 1 . . Follow-up Attacks . | . . . . . . . . . . . . Damage Inflicted 9672 | 71 339 603 . 400 3107 1624 1214 446 1675 . 193 Guns 2289 | 71 198 338 . 26 1481 . . . 175 . . Cannons 4878 | . 141 245 . . 913 1533 1090 418 538 . . Explosions 1522 | . . . . 374 516 . 124 28 480 . . Melee 623 | . . . . . . . . . 430 . 193 Ramming 58 | . . . . . 22 36 . . . . . Kinetic 2904 | 71 198 251 . 26 916 236 865 . 341 . . Thermal 3978 | . 141 352 . . 1653 1352 225 28 227 . . Explosive 1494 | . . . . 374 516 . 124 . 480 . . Electromagnetic 615 | . . . . . . . . 418 197 . . Impact . | . . . . . . . . . . . . Slashing 623 | . . . . . . . . . 430 . 193 Piercing . | . . . . . . . . . . . . Highest Corruption 4 | . . . . . . 1 1 1 4 4 4 Average Corruption 1 | . . . . . . 1 1 1 1 4 3 Corruption Purged 3 | . . . . . . . . . 2 . 1 Effects 46 | . . . . . . 2 7 1 25 . 11 Message Errors 16 | . . . . . . . 2 1 9 . 4 Matter Fused 2 | . . . . . . . . . . . 2 Heat Flow Errors 6 | . . . . . . . . . 5 . 1 Energy Discharges 6 | . . . . . . 1 . . 4 . 1 Data Loss (minor) 12 | . . . . . . . 3 . 6 . 3 Targeting Errors 4 | . . . . . . 1 2 . 1 . . Overload Shots . | . . . . . . . . . . . . Overflow Damage 185 | . . . . . 37 36 22 26 64 . . Projectiles 109 | . . . . . 14 36 22 26 11 . . Explosions 23 | . . . . . 23 . . . . . . Melee 53 | . . . . . . . . . 53 . . Knockbacks 13 | . . . . . . 5 8 . . . . Impact . | . . . . . . . . . . . . Kinetic 13 | . . . . . . 5 8 . . . . Secondary . | . . . . . . . . . . . . Self-Inflicted Damage . | . . . . . . . . . . . . Shots . | . . . . . . . . . . . . Rammed 2 | . . . . . 1 1 . . . . . Targets Rammed 2 | . . . . . 1 1 . . . . . Kicked . | . . . . . . . . . . . . Crushed . | . . . . . . . . . . . . Highest Temperature 368 | . 158 368 . 24 285 324 189 42 242 . 106 Average Temperature 65 | . 39 100 . 10 63 95 51 15 46 . 69 Received Heat Transfer 1377 | . 129 222 . 6 468 279 99 . 156 18 . Effects 4 | . . 2 . . 1 1 . . . . . Shutdowns 1 | . . 1 . . . . . . . . . Energy Bleed 2 | . . . . . 1 1 . . . . . Damage (minor) 1 | . . 1 . . . . . . . . . Siege Activations . | . . . . . . . . . . . . Robots Corrupted . | . . . . . . . . . . . . Combat Hostiles . | . . . . . . . . . . . . Parts Fried 4 | . . . . . . . . 3 1 . . Impact Corruptions . | . . . . . . . . . . . . Robots Melted 2 | . . . . . 1 1 . . . . . Combat Hostiles 2 | . . . . . 1 1 . . . . . Parts Melted 21 | . 2 2 . . 3 11 1 . 2 . . Heat Transferred 8806 | . 296 863 . . 3833 2685 450 50 629 . . Parts Sabotaged . | . . . . . . . . . . . . Parts Stolen . | . . . . . . . . . . . . Parts Stripped . | . . . . . . . . . . . . Power Chain Reactions 1 | . . . . . . . . 1 . . . Missiles Intercepted . | . . . . . . . . . . . . Alert | -11 -10 -10 -10 -9 -8 -8 -8 -8 -6 -6 -6 ------- Run | Scr Mat Min Exi Min Mat Sto Gar Rec Fac Gar Fac Peak Influence 1739 | 5 94 186 . 134 486 388 949 446 1739 1091 583 Average Influence 360 | 1 43 57 . 13 220 222 587 277 645 1073 307 Maximum Alert Level 5 | . . . . . 2 1 3 2 5 3 2 Low Security (%) 44 | 100 100 100 . 100 54 35 5 18 24 . 27 Level 1 28 | . . . . . 36 64 26 73 15 . 62 Level 2 12 | . . . . . 9 . 28 8 21 . 9 Level 3 6 | . . . . . . . 39 . 11 100 . Level 4 7 | . . . . . . . . . 22 . . Level 5 1 | . . . . . . . . . 3 . . High Security . | . . . . . . . . . . . . Max Security . | . . . . . . . . . . . . Squads Dispatched 30 | . 1 . . . 2 5 . . 21 . 1 Investigation 2 | . . . . . 1 . . . 1 . . Extermination 11 | . . . . . . . . . 10 . 1 Reinforcement 7 | . 1 . . . 1 1 . . 4 . . Assault 6 | . . . . . . . . . 6 . . Garrison 4 | . . . . . . 4 . . . . . Intercept . | . . . . . . . . . . . . Construction Impeded 2 | . . . . . . . . . 2 . . Haulers Reinforced . | . . . . . . . . . . . . Stealth | -11 -10 -10 -10 -9 -8 -8 -8 -8 -6 -6 -6 --------- Run | Scr Mat Min Exi Min Mat Sto Gar Rec Fac Gar Fac Distress Signals 7 | . . . . . 6 . . . 1 . . Communications Jammed . | . . . . . . . . . . . . Distress Signals . | . . . . . . . . . . . . Times Spotted 281 | . 11 13 . 7 82 26 19 20 86 11 6 Peak Tracking Total 11 | . 3 3 . 4 5 3 5 3 8 11 3 Tactical Retreats 19 | . . 1 . . 7 . 3 . 7 1 . Traps | -11 -10 -10 -10 -9 -8 -8 -8 -8 -6 -6 -6 ------- Run | Scr Mat Min Exi Min Mat Sto Gar Rec Fac Gar Fac Traps Triggered 14 | . . . . . . 1 10 . 3 . . Indirectly . | . . . . . . . . . . . . Trap Hack Attempts . | . . . . . . . . . . . . Triggered . | . . . . . . . . . . . . Disarmed 6 | . . . . . . . . . 6 . . Reprogrammed . | . . . . . . . . . . . . Reused . | . . . . . . . . . . . . Traps Extracted . | . . . . . . . . . . . . Installed . | . . . . . . . . . . . . Triggered . | . . . . . . . . . . . . Exploded 3 | . . . . . . 2 1 . . . . Machines | -11 -10 -10 -10 -9 -8 -8 -8 -8 -6 -6 -6 ---------- Run | Scr Mat Min Exi Min Mat Sto Gar Rec Fac Gar Fac Machines Disabled 16 | . . . . 1 1 1 8 1 4 . . Max in Single Turn 2 | . . . . 1 1 1 2 1 1 . . Garrison Relay 4 | . . . . . . . 4 . . . . Phase Generator 1 | . . . . . . . 1 . . . . Machines Sabotaged . | . . . . . . . . . . . . Garrisons Compromised . | . . . . . . . . . . . . Overloaded Fab Kills . | . . . . . . . . . . . . Fab Network Shutdowns . | . . . . . . . . . . . . Hacking | -11 -10 -10 -10 -9 -8 -8 -8 -8 -6 -6 -6 --------- Run | Scr Mat Min Exi Min Mat Sto Gar Rec Fac Gar Fac Machines Accessed 49 | . 2 . 2 . 9 7 . 5 16 . 8 Terminals 33 | . 2 . . . 7 4 . 5 9 . 6 Fabricators 3 | . . . . . . . . . 2 . 1 Repair Stations 2 | . . . . . 1 1 . . . . . Recycling Units 4 | . . . . . . 1 . . 3 . . Scanalyzers 1 | . . . . . 1 . . . . . . Garrison Access 4 | . . . . . . 1 . . 2 . 1 Total Hacks 160 | . 2 . 5 . 29 22 . 13 71 . 18 Successful 105 | . 2 . 5 . 17 12 . 4 51 . 14 Failed 55 | . . . . . 12 10 . 9 20 . 4 Catastrophic 9 | . . . . . 2 1 . 1 4 . 1 Database Lockouts . | . . . . . . . . . . . . Manual 109 | . 2 . 1 . 21 14 . 12 46 . 13 Terminals 105 | . 2 . . . 21 15 . 13 42 . 12 Fabricators 23 | . . . . . . . . . 19 . 4 Repair Stations 7 | . . . . . 4 3 . . . . . Recycling Units 4 | . . . . . . 1 . . 3 . . Scanalyzers 4 | . . . . . 4 . . . . . . Garrison Access 12 | . . . . . . 3 . . 7 . 2 Terminal Hacks 29 | . . . 5 . 3 3 . 2 13 . 3 Record 4 | . . . 4 . . . . . . . . Robot Schematic 3 | . . . . . 1 . . . 2 . . Open Door 2 | . . . . . . 2 . . . . . Terminal Index 1 | . . . . . . . . . 1 . . Fabricator Index 2 | . . . . . . . . . 1 . 1 Recycling Unit Index 1 | . . . . . . . . . 1 . . Unreport Threat 11 | . . . . . 2 1 . 2 4 . 2 Locate Traps 2 | . . . . . . . . . 2 . . Disarm Traps 1 | . . . . . . . . . 1 . . Recall Assault 1 | . . . . . . . . . 1 . . EX-Prototype ID Bank 1 | . . . 1 . . . . . . . . Fabricator Hacks 18 | . . . . . . . . . 16 . 2 Load Schematic 4 | . . . . . . . . . 3 . 1 Build 14 | . . . . . . . . . 13 . 1 Repair Station Hacks 6 | . . . . . 4 2 . . . . . Scan Component 3 | . . . . . 2 1 . . . . . Repair 3 | . . . . . 2 1 . . . . . Recycling Unit Hacks . | . . . . . . . . . . . . Scanalyzer 4 | . . . . . 4 . . . . . . Insert Component 3 | . . . . . 3 . . . . . . Analyze 1 | . . . . . 1 . . . . . . Garrison Access Hacks 5 | . . . . . . 1 . . 3 . 1 Unlock Access 4 | . . . . . . 1 . . 2 . 1 Coupler Status 1 | . . . . . . . . . 1 . . Unauthorized Hacks 43 | . 2 . . . 6 6 . 2 19 . 8 Terminals 30 | . 2 . . . 6 3 . 2 11 . 6 Track 1 | . . . . . . . . . 1 . . Assimilate 7 | . 1 . . . 2 . . . 2 . 2 Botnet 17 | . . . . . 3 2 . 2 7 . 3 Operators 5 | . 1 . . . 1 1 . . 1 . 1 Fabricators 3 | . . . . . . . . . 2 . 1 Siphon 3 | . . . . . . . . . 2 . 1 Repair Stations . | . . . . . . . . . . . . Recycling Units 4 | . . . . . . 1 . . 3 . . Mask 4 | . . . . . . 1 . . 3 . . Scanalyzers . | . . . . . . . . . . . . Garrison Access 6 | . . . . . . 2 . . 3 . 1 Restock 1 | . . . . . . 1 . . . . . Redirect 1 | . . . . . . . . . 1 . . Reprogram 2 | . . . . . . . . . 1 . 1 Intercept 2 | . . . . . . 1 . . 1 . . Data Cores Recovered . | . . . . . . . . . . . . Used . | . . . . . . . . . . . . Hacking Detections 37 | . 1 . . . 8 6 . 5 12 . 5 Full Trace Events 4 | . . . . . 1 . . 2 1 . . Feedback Events . | . . . . . . . . . . . . Feedback Blocked . | . . . . . . . . . . . . Robot Schematics Acquired 3 | . . . . . 1 . . . 2 . . Robots Built 14 | . . . . . . . . . 14 . . Matter 1608 | . . . . . . . . . 1323 . 285 Time 813 | . . . . . . . . . 737 . 76 Total Robot Build Rating 56 | . . . . . . . . . 56 . . Part Schematics Acquired 1 | . . . . . 1 . . . . . . Parts Built . | . . . . . . . . . . . . Matter . | . . . . . . . . . . . . Time . | . . . . . . . . . . . . Total Part Build Rating . | . . . . . . . . . . . . Parts Repaired 3 | . . . . . 2 1 . . . . . Time 108 | . . . . . 64 44 . . . . . Parts Recycled . | . . . . . . . . . . . . Recycled Matter . | . . . . . . . . . . . . Retrieved Matter . | . . . . . . . . . . . . Retrieved Components . | . . . . . . . . . . . . Parts Scanalyzed 1 | . . . . . 1 . . . . . . Part Schematics Acquired 1 | . . . . . 1 . . . . . . Parts Damaged . | . . . . . . . . . . . . Bothacking | -11 -10 -10 -10 -9 -8 -8 -8 -8 -6 -6 -6 ------------ Run | Scr Mat Min Exi Min Mat Sto Gar Rec Fac Gar Fac Used RIF Installer 2 | . . . . . . . 1 . . 1 . Structural Interface 1 | . . . . . . . . . . 1 . Robots Hacked 13 | . . . . . . . . . 13 . . Non-combat 8 | . . . . . . . . . 8 . . Combat 5 | . . . . . . . . . 5 . . Robot Hacks Applied 17 | . . . . . . . . . 17 . . parse_system 1 | . . . . . . . . . 1 . . find_chute 1 | . . . . . . . . . 1 . . find_fabricator 1 | . . . . . . . . . 1 . . purge_threat 3 | . . . . . . . . . 3 . . amplify_resonance 1 | . . . . . . . . . 1 . . formatsys_low 6 | . . . . . . . . . 6 . . formatsys_high 4 | . . . . . . . . . 4 . . Relay Couplers Released 26 | . . . . . . 3 16 . 7 . . Machine Destruction 16 | . . . . . . . 16 . . . . Programmers 10 | . . . . . . 3 . . 7 . . Attached 8 | . . . . . . . . . 8 . . Robots Rewired 1 | . . . . . . . . . 1 . . Allies Hacked 4 | . . . . . . . . . 3 . 1 Hacks Repelled . | . . . . . . . . . . . . Allies | -11 -10 -10 -10 -9 -8 -8 -8 -8 -6 -6 -6 -------- Run | Scr Mat Min Exi Min Mat Sto Gar Rec Fac Gar Fac Total Allies 33 | . . 3 . . 1 . . . 27 . 2 Largest Group 16 | . . 3 3 3 4 . . . 16 . 2 Highest-Rated Group 496 | . . 40 40 40 50 . . . 496 . 52 Highest-Rated Ally 47 | . . 16 16 16 16 . . . 47 . 26 Total Orders 208 | . . . . 2 16 . . . 188 . 2 STAY 97 | . . . . 1 9 . . . 86 . 1 GOTO 2 | . . . . . . . . . 2 . . ROAM 1 | . . . . . . . . . 1 . . FOLLOW 68 | . . . . 1 7 . . . 59 . 1 AID 12 | . . . . . . . . . 12 . . TUNNEL 17 | . . . . . . . . . 17 . . DROP 2 | . . . . . . . . . 2 . . PICKUP 3 | . . . . . . . . . 3 . . COLLECT 6 | . . . . . . . . . 6 . . Ally Attacks 251 | . . 2 . 8 9 . . . 232 . . Total Damage 5513 | . . 30 . 89 89 . . . 5305 . . Kills 53 | . . 1 . 1 . . . . 51 . . Allies Corrupted 2 | . . . . . . . . . 2 . . Allies Melted . | . . . . . . . . . . . . Intel | -11 -10 -10 -10 -9 -8 -8 -8 -8 -6 -6 -6 ------- Run | Scr Mat Min Exi Min Mat Sto Gar Rec Fac Gar Fac Robot Analysis Total . | . . . . . . . . . . . . Derelict Logs Recovered 3 | . . 2 . 1 . . . . . . . Drone Launches . | . . . . . . . . . . . . Drone Recoveries . | . . . . . . . . . . . . Exploration | -11 -10 -10 -10 -9 -8 -8 -8 -8 -6 -6 -6 ------------- Run | Scr Mat Min Exi Min Mat Sto Gar Rec Fac Gar Fac Turns Passed 21087 | 109 662 1581 894 801 5947 1974 1423 677 6421 46 552 Spaces Moved 15878 | 53 336 790 492 418 2539 773 612 285 8818 95 667 Core 715 | 3 . . . . . . . . 7 38 667 Treads 6445 | 50 336 790 492 418 2539 773 612 285 150 . . Legs . | . . . . . . . . . . . . Wheels . | . . . . . . . . . . . . Hover . | . . . . . . . . . . . . Flight 8718 | . . . . . . . . . 8661 57 . Fastest Speed 29 | 50 160 160 160 180 180 180 180 203 29 29 50 Average Speed 95 | 153 160 160 175 180 198 199 196 203 31 37 59 Slowest Speed 250 | 160 160 180 180 180 220 200 203 203 250 50 100 Overloaded Moves . | . . . . . . . . . . . . Propulsion Burnouts . | . . . . . . . . . . . . Robots Hopped 17 | . . . . . . . . . 17 . . Cave-ins Triggered 1 | . . . . . . . . . 1 . . Exploration Rate (%) 58 | 3 46 95 71 91 98 40 93 65 56 30 15 Regions Visited 11 Branch Regions 5 Pre-discovered Areas 2 | . . 1 1 . . . . . . . . Known Exits Taken 2 | . . . . . . 1 . . 1 . . Unknown Exits Taken 7 | 1 1 1 1 1 1 . . 1 . . . Scrap Searched 3 | . . 2 . 1 . . . . . . . Spaces Dug 75 | . . . . . 29 5 . 1 34 . 6 Terrain Destroyed 318 | . . . . 50 73 17 92 3 77 . 6 Melee 40 | . . . . . . . . . 34 . 6 Projectile 38 | . . . . . 19 17 . 1 1 . . AOE 240 | . . . . 50 54 . 92 2 42 . . Actions | -11 -10 -10 -10 -9 -8 -8 -8 -8 -6 -6 -6 --------- Run | Scr Mat Min Exi Min Mat Sto Gar Rec Fac Gar Fac Total 21107 | 69 416 1032 529 457 3206 1108 761 364 12261 105 799 Wait 4319 | 1 34 190 1 30 384 222 30 53 3253 10 111 Move 15832 | 52 335 789 491 417 2538 772 611 284 8782 94 667 Hop 17 | . . . . . . . . . 17 . . Pick Up 159 | 4 9 4 21 1 59 30 16 1 12 . 2 Fast Attach 33 | 7 1 . . . 11 3 . . 8 . 3 Attach 55 | . . 7 1 . 9 6 5 3 20 . 4 Detach 6 | . . . . . 1 . . 2 2 . 1 Swap 63 | . 2 1 2 4 20 11 6 . 17 . . Drop 128 | . 7 . 13 . 43 14 19 . 31 1 . Fire 398 | 5 28 41 . 5 140 49 54 21 55 . . Melee 66 | . . . . . . . . . 55 . 11 Ram . | . . . . . . . . . . . . Kick . | . . . . . . . . . . . . Crush 2 | . . . . . 1 1 . . . . . Escape Stasis 21 | . . . . . . . 20 . 1 . . Rewire 8 | . . . . . . . . . 8 . . Trap . | . . . . . . . . . . . . Miscellaneous . | . . . . . . . . . . . . Route ------- -11/Scrapyard -10/Materials -10/Mines (discovered 3 exits: [*Mat x2] / *Exi) -10/Exiles -9/Mines -8/Materials (discovered 4 exits: *Fac x3 / *Sto) -8/Storage -8/Garrison (discovered 3 exits: *Rec x3) -8/Recycling -6/Factory (discovered 5 exits: [*Fac x2] / [*Low] / Gar / Gar) -6/Garrison -6/Factory (discovered 1 exit: Gar) History --------- Turn | Location | Event 4 | -11/Scrapyard | Discovered new exit (range 16) 110 | -11/Scrapyard | Entered Materials 300 | -10/Materials | Build established: Mutant 495 | -10/Materials | Discovered new exit (range 7) 772 | -10/Materials | Entered Mines 833 | -10/Mines | A weapon hastily lodged in a ceiling crevice suddenly fell to the ground 881 | -10/Mines | Discovered new exit (range 8) 1135 | -10/Mines | Excavation squad dispatched 1135 | -10/Mines | A large section of the Mines collapsed 1342 | -10/Mines | Learned location of Mines (-9) 1357 | -10/Mines | Discovered new exit (range 5) 1537 | -10/Mines | Lost 3 parts (1p1n1w) 1575 | -10/Mines | Assisted by bots powering up and referring to "LRC-V3" 2318 | -10/Mines | Learned location of 1 exit from Materials 2340 | -10/Mines | Deemed a non-threat by the Exiles lab entrance 2342 | -10/Mines | Discovered new exit (range 5) 2353 | -10/Mines | Entered Exiles 2353 | -10/Exiles | Accompanied by 3 allies 2392 | -10/Exiles | Met 8R-AWN 2476 | -10/Exiles | Met EX-HEX 2584 | -10/Exiles | Met EX-DEC 2771 | -10/Exiles | Learned location of Zion (-7) 2882 | -10/Exiles | Build established: Hauler-Mutant 2987 | -10/Exiles | Met EX-BIN 3007 | -10/Exiles | Aligned with FarCom system 3009 | -10/Exiles | Given EX-Vault access code 3050 | -10/Exiles | Opened EX-Vault 3067 | -10/Exiles | Found Firepult 3105 | -10/Exiles | Warned to stay clear of 0b10 Research branches 3223 | -10/Exiles | Discovered new exit (range 15) 3247 | -10/Exiles | Left Exiles lab with Firepult 3247 | -10/Exiles | Entered Mines 3247 | -9/Mines | Accompanied by 3 allies 3254 | -9/Mines | Received a Rocket Launcher from a helpful Derelict 3757 | -9/Mines | Learned Materials trap positions 4029 | -9/Mines | Discovered new exit (range 10) 4048 | -9/Mines | Entered Materials 4048 | -8/Materials | Accompanied by 3 allies 4048 | -8/Materials | Evolved 4 slots: Propulsion x1, Utility x3 4049 | -8/Materials | Identified exit to Factory 4050 | -8/Materials | Loaded intel: 20 trap records 4838 | -8/Materials | Discovered new exit (range 14) 5365 | -8/Materials | Repaired Imp. Treads 5398 | -8/Materials | Repaired Imp. Treads 6783 | -8/Materials | Discovered exit to Factory (range 4) 7367 | -8/Materials | Discovered exit to Factory (range 6) 9995 | -8/Materials | Entered Storage 10038 | -8/Storage | Garrison activated, responded to threat 10525 | -8/Storage | Repaired Plasma Cannon 11429 | -8/Storage | Identified exit to Garrison 11482 | -8/Storage | Garrison activated, responded to threat 11969 | -8/Storage | Entered Garrison 12012 | -8/Garrison | Triggered checkpoint 12044 | -8/Garrison | Garrison Relay disabled 12244 | -8/Garrison | Triggered checkpoint 12350 | -8/Garrison | Triggered checkpoint 12495 | -8/Garrison | Discovered new exit (range 8) 12529 | -8/Garrison | Installed Relay Interface Framework 12560 | -8/Garrison | Triggered checkpoint 12666 | -8/Garrison | Garrison Relay disabled 12833 | -8/Garrison | Build established: Bothacker-Mutant 12900 | -8/Garrison | Phase Generator disabled 12930 | -8/Garrison | Triggered checkpoint 12984 | -8/Garrison | Triggered checkpoint 13018 | -8/Garrison | Garrison Relay disabled 13078 | -8/Garrison | Discovered new exit (range 11) 13253 | -8/Garrison | Triggered checkpoint 13271 | -8/Garrison | Garrison Relay disabled 13354 | -8/Garrison | Discovered new exit (range 15) 13392 | -8/Garrison | Entered Recycling 13430 | -8/Recycling | Spotter reported a threat 13446 | -8/Recycling | Spotter reported a threat 13499 | -8/Recycling | Spotter reported a threat 13574 | -8/Recycling | Spotter reported a threat 13575 | -8/Recycling | Spotter reported a threat 13660 | -8/Recycling | Spotter reported a threat 13742 | -8/Recycling | Spotter reported a threat 13766 | -8/Recycling | Spotter reported a threat 13788 | -8/Recycling | Spotter reported a threat 13813 | -8/Recycling | Spotter reported a threat 13833 | -8/Recycling | Spotter reported a threat 13836 | -8/Recycling | Spotter reported a threat 13866 | -8/Recycling | Spotter reported a threat 13923 | -8/Recycling | Spotter reported a threat 13932 | -8/Recycling | Spotter reported a threat 13951 | -8/Recycling | Discovered new exit (range 8) 13993 | -8/Recycling | Spotter reported a threat 14002 | -8/Recycling | Spotter reported a threat 14029 | -8/Recycling | Spotter reported a threat 14030 | -8/Recycling | Spotter reported a threat 14069 | -8/Recycling | Entered Factory 14069 | -6/Factory | Evolved 4 slots: Utility x4 14419 | -6/Factory | First assault squad dispatched 14598 | -6/Factory | Fabricated X-62 Marksman (x2) 14745 | -6/Factory | Build established: Wizard-Sprinter 15062 | -6/Factory | Fabricated X-62 Marksman? 15658 | -6/Factory | Fabricated X-62 Marksman? 15857 | -6/Factory | Discovered new exit (range 12) 15894 | -6/Factory | Discovered new exit (range 12) 16188 | -6/Factory | Build established: Hacker-Sprinter 16868 | -6/Factory | Build established: Commander-Sprinter 17171 | -6/Factory | Fabricated X-62 Marksman? 18150 | -6/Factory | Fabricated X-62 Marksman? 18470 | -6/Factory | Crushed by falling debris 19116 | -6/Factory | Fabricated X-62 Marksman? 20161 | -6/Factory | Fabricated X-62 Marksman? 20339 | -6/Factory | Identified exit to Garrison 20431 | -6/Factory | Discovered new exit (range 8) 20473 | -6/Factory | Identified exit to Garrison 20490 | -6/Factory | Entered Garrison 20492 | -6/Garrison | Expanded RIF knowledge: Structural Interface 20493 | -6/Garrison | Lost 3 parts (1p1u1w) 20506 | -6/Garrison | Core integrity fell below 50% 20518 | -6/Garrison | Triggered checkpoint 20519 | -6/Garrison | Triggered checkpoint 20532 | -6/Garrison | Discovered new exit (range 8) 20533 | -6/Garrison | Core integrity fell below 20% 20536 | -6/Garrison | Entered Factory 20550 | -6/Factory | Lost 6 parts (3n3u) 20828 | -6/Factory | Identified exit to Garrison 21085 | -6/Factory | Build established: Hacker-Mutant 21088 | -6/Factory | Destroyed by S-27 Virus with Autogun Last Messages --------------- Testing... Network distribution system infiltrated, ready to redirect. 21036_ ALERT: Rogue bot located, Programmers report to Factory Zone 8R. 21036_ K-01 Serf cleans the Neutrino Reactor. 21044_ System corrupted: Component data lost. 21045_ K-01 Serf cleans the Neutrino Reactor. 21062_ Administrator 5d reactivates. 21063_ U-05 Engineer builds a Wall. 21065_ Administrator 5d destroyed. 21068_ K-01 Serf collects debris. 21073_ K-01 Serf cleans the Neutrino Reactor. 21073_ K-01 Serf collects debris. 21082_ Neutrino Reactor explodes. 21082_ Chain reaction triggered in Lgt. Fission Core. 21082_ T-07 Excavator destroyed. 21082_ K-01 Serf destroyed. 21082_ C-30 ARC bursts open, deploying its payload. 21082_ S-27 Virus unfolds itself. 21082_ K-01 Serf collects debris. 21088_ P-60 Hacker resets R-10 Processor, system corruption cleaned. Map ----- +----------------------------------------------------+ | ?????????????????????????????????????????????????? | | ?????????????????????????????????????????????????? | | ?????????????????????????????????????????????????? | | ?????????????????????????????????????????????????? | | ?????????????????????????????????????????????????? | | ?????????????????????????????????????????????????? | | ?????????????????????????????????????????????????? | | ?????????????????????????????????????????????????? | | ?????????????????????????????????????????????????? | | ?????????????????????????????????????????????????? | | ?????????????????????????????????????????????????? | | ??????????????????????########???????????????????? | | ?????????????????????? A ????????????????? | | ????????????????????? ???????????????? | | ???????????????????? ???????????????? | | ????????????????????? ????????????????? | | ????????????????????? ?????????????????? | | ?????????????????????? ??????????????????? | | ??????????????????????? ???????????????????? | | ???????????????????????# #???????????????????? | | ?? ????????????????????# R #???????????????????? | | ? ???#######??????????# #???????????????????? | | ??# """ #??????????# #???????????????????? | | ??#""T""#??????????# #???????????????????? | | ###"" ""############ %! ##################### | | [ ^ ^ ^ @p t ^ | | R | | "" """ """ """ k ^ sk% | | "" """ """ """ s s | | ""^""" """ """| ^ | | ==!^ u ^ | | "" """ """ !% uu u^ | | "" """ """ / ###############+##### #? | | "" """ """ ] #????## # #? | | #?????## # #? | | #??????# """ """ # #? | | #####"" ""# #??????# """ """ + #? | | #####???#"F ""# #??????# """ """ # +? | | ????????#"""""# #??????# # #? | | ????????#############??????# ! """ """ # #? | | ???????????????????????????# """ """ # #? | | ???????????????????????????# """ """ # #? | | ???????????????????????????# # #? | | ???????????????????????????# # #? | | ???????????????????????????# ! # #? | | ???????????????????????????#########+#### ## | | ???????????????????????????????????# #??# | | ???????????????????????????????????# #??# ## | | ???????????????????????????????????# #??# # | | ???????????????????????????????????# #??# # | +----------------------------------------------------+ Best States ------------- Heat Dissipation 45 Coolant Potential 65 Energy Generation 14 Energy Capacity 275 Matter Stores 300 Matter Capacity 300 Sight Range 16 Terrain Scan Density 10 Armor Coverage 150 Evasion (%) 74 Melee Accuracy 5 Recoil Reduction 3 Offensive Hacking 40 Defensive Hacking 30 Item Schematics ----------------- Humpback | -8/Materials | Scanalyzed Robot Schematics ------------------ M-28 Smith | -8/Materials | Hacked X-62 Marksman | -6/Factory | Hacked H-66 Slayer | -6/Factory | Hacked Fabricated ------------ X-62 Marksman | x2 | -6/Factory X-62 Marksman | x2 | -6/Factory X-62 Marksman | x2 | -6/Factory X-62 Marksman | x2 | -6/Factory X-62 Marksman | x2 | -6/Factory X-62 Marksman | x2 | -6/Factory X-62 Marksman | x2 | -6/Factory Alien Tech Used ----------------- None Achievements -------------- Error 47 Challenges ------------ None Game ------ Seed SwarmRecyclingSplitter Manual? 0 Play Time 03:00:10 Cumulative 92.7 hours Start 2020.06.09 @ 21:21:49 End 2020.06.10 @ 00:25:54 Sessions 1 Manual Loads 0 Difficulty Rogue Special Mode None Game No. 46 Rogue 46 Adventurer 0 Explorer 0 Win Type - Total 5 Types 4/0/0/1/0/0/0 Lore% 64 Gallery% 59 Achievement% 51 Wizard Run 0 Options --------- ASCII 1 Keyboard 0 Movement Numpad Keybinds 0 Fullscreen 1 Font 18/SmallcapsGlow Map View 76x50 Tactical HUD 1 Map Filters NONE Filters NONE Steam 1 RUN: bfa53dff-dc32-445b-8857-0006aed5233a